Cogmind - Beta 12 @@@ ROGUE MODE // 2024.02.12 @ 04:35:15 Player: Krieg Result: Destroyed by B-86 Titan with Railgun Performance ------------- Evolutions (5) 2500 Regions Visited (14) 2800 Robots Destroyed (75) 375 Value Destroyed (2312) 2312 Prototype IDs (30) 600 Alien Tech Used (0) 0 Bonus (81) 81 TOTAL SCORE: 8668 Bonus ------- High Alert Combat Kills 23 Follower Combat Kills 139 Met Warlord at Base 500 MAIN.C Attacked Warlord 500 Friendly Fire -1081 Cogmind --------- Core Integrity 0/1000 Matter 300/300 Energy 86/100 System Corruption 0% Temperature Cool (11) Movement Hovering (140) Ox1 Location -4/Proximity Caves Parts ------- > --- POWER (2) -------- (None) > --- PROPULSION (5) --- Improved Medium Treads Antigrav System > --- UTILITY (8) ------ Improved Coolant Injector Makeshift Trap Scanner Improved Signal Interpreter 0b10 Decoder Chip [Generic] Improved Target Analyzer Makeshift System Shield > --- WEAPON (2) ------- Heavy Battle Rifle Vortex Lance > --- INVENTORY (5) ---- Carbon-fiber Leg 0b10 Decoder Chip [Generic] Makeshift ECM Suite Lance Vortex Lance (40) Peak State ------------ > --- POWER ------------ Light Antimatter Reactor Improved Quantum Reactor > --- PROPULSION ------- Carbon-fiber Leg Carbon-fiber Leg Carbon-fiber Leg Enhanced Flexi-carbon Leg > --- UTILITY ---------- Coolant Network Improved Signal Interpreter 0b10 Decoder Chip [Generic] Improved Target Analyzer Advanced Transmission Jammer Hardened Heavy Armor Plating > --- WEAPON ----------- Heavy Battle Rifle Vortex Lance > --- INVENTORY -------- 0b10 Decoder Chip [Generic] Heavy Battle Rifle Remote Datajack Lance Vortex Lance [Rating: 94] Favorites ----------- Power Light Ion Engine Engine Light Ion Engine Power Core Micro Fission Core Reactor Light Antimatter Reactor Propulsion Carbon-fiber Leg Treads Light Treads Leg Carbon-fiber Leg Wheel Armored Wheel Hover Unit Airjet Flight Unit Cesium-ion Thruster Utility Large Storage Unit Device Sensor Drone Bay Storage Large Storage Unit Processor Signal Interpreter Hackware System Shield Protection Hardened Heavy Armor Plating Weapon Assault Rifle Energy Gun Backup Laser III Ballistic Gun Assault Rifle Ballistic Cannon Assault Cannon Launcher Missile Launcher Special Weapon Remote Datajack Impact Weapon Heavy Flail Piercing Weapon Lance Special Melee Weapon Dirty Datajack Build | -11 -10 -10 -9 -9 -8 -7 -7 -7 -6 -5 -5 -5 -5 -4 ------- Run | Jun Mat Min Mat Min Mat Fac Low Low Fac Fac Upp Upp War Pro Slots Evolved 10 | . . . 2 . 2 2 . . 2 2 . . . . Power 1 | . . . . . . . . . . 1 . . . . Propulsion 3 | . . . 2 . . . . . . 1 . . . . Utility 6 | . . . . . 2 2 . . 2 . . . . . Weapon . | . . . . . . . . . . . . . . . Parts Attached 134 | 5 7 5 12 . 14 4 29 4 8 5 5 11 12 13 Power 13 | 1 1 1 1 . 1 1 3 . 1 . . 1 2 . Engine 6 | 1 1 1 1 . . . 2 . . . . . . . Core 5 | . . . . . 1 1 1 . 1 . . 1 . . Reactor 2 | . . . . . . . . . . . . . 2 . Propulsion 38 | 2 . 2 8 . 4 . 7 . 2 2 . 4 1 6 Treads 12 | . . 2 2 . 4 . 3 . . . . . . 1 Leg 12 | . . . 4 . . . 3 . . . . 4 1 . Wheel 4 | 2 . . 2 . . . . . . . . . . . Hover 9 | . . . . . . . . . 2 2 . . . 5 Flight 1 | . . . . . . . 1 . . . . . . . Utility 48 | . 5 1 2 . 5 2 6 1 4 2 2 6 7 5 Device 22 | . . 1 1 . 2 . 1 . 2 1 1 5 4 4 Storage 3 | . 2 . . . . . 1 . . . . . . . Processor 8 | . 1 . 1 . 1 . . . . 1 1 1 2 . Hackware 6 | . . . . . 1 1 2 1 . . . . . 1 Protection 9 | . 2 . . . 1 1 2 . 2 . . . 1 . Artifact . | . . . . . . . . . . . . . . . Weapon 35 | 2 1 1 1 . 4 1 13 3 1 1 3 . 2 2 Energy Gun 3 | . . . . . . . 2 1 . . . . . . Energy Cannon . | . . . . . . . . . . . . . . . Ballistic Gun 14 | 2 . 1 1 . 1 . 4 1 1 . . . 1 2 Ballistic Cannon 2 | . . . . . . . 2 . . . . . . . Launcher 6 | . 1 . . . 1 1 3 . . . . . . . Special Weapon 1 | . . . . . . . 1 . . . . . . . Impact Weapon 4 | . . . . . 2 . 1 1 . . . . . . Slashing Weapon . | . . . . . . . . . . . . . . . Piercing Weapon 3 | . . . . . . . . . . 1 1 . 1 . Special Melee Weapon 2 | . . . . . . . . . . . 2 . . . Unidentified Prototypes 8 | . . 1 . . 1 . . . 1 . . . 5 . Corrupted Parts 1 | . . . . . . . 1 . . . . . . . System Corruption 4 | . . . . . . . 4 . . . . . . . Parts Lost 52 | . . 5 2 1 6 5 16 9 . 1 1 . . 6 Power 10 | . . 1 1 . 1 2 2 1 . 1 . . . 1 Propulsion 18 | . . 2 . . 2 1 5 4 . . . . . 4 Utility 9 | . . 1 . . 1 1 4 1 . . . . . 1 Weapon 15 | . . 1 1 1 2 1 5 3 . . 1 . . . Highest Loss Streak 9 | . . 3 1 1 4 5 7 9 . 1 1 . . 5 To Critical Strikes . | . . . . . . . . . . . . . . . Average Slot Usage (%) 72 | . 93 84 94 85 91 85 80 47 47 59 4 32 74 83 Engine 4 | . 14 12 10 11 . . 3 . . . . . 1 . Core 2 | . . . . . 8 4 2 . 1 4 . 1 4 . Reactor 1 | . . . . . . . . . . . . . 2 10 Treads 7 | . . 19 19 . 10 11 7 2 . . . . . . Leg 7 | . . . 16 22 1 . 3 2 . . . 7 23 21 Wheel 5 | . 28 7 7 22 18 15 6 . . . . . . . Device 5 | . . . 7 . 7 4 3 . 7 9 2 5 11 11 Storage 5 | . 13 14 11 11 9 7 6 4 . . . . . . Processor 7 | . . . . . 9 7 7 7 6 4 . 9 15 17 Hackware 5 | . . . . . 7 13 19 17 20 15 . . . . Protection 2 | . 7 3 . . 1 5 1 2 4 9 . . . 4 Ballistic Gun 8 | . 15 22 21 19 9 3 5 . . . . . . 4 Launcher 1 | . 12 3 . . 5 3 1 . . . . . . . Impact Weapon 1 | . . . . . 3 7 2 6 . . . . . . Piercing Weapon 2 | . . . . . . . . . . . . 5 9 5 Naked Turns 124 | . . . . . . . . . . 20 104 . . . Heaviest Build 71 | 7 31 31 44 30 43 43 57 27 14 18 14 24 61 71 Greatest Support 88 | 32 32 40 80 24 45 45 40 40 20 30 3 60 88 88 Greatest Overweight (x) 8 | . . 1 3 1 1 1 2 8 . . 4 5 1 2 Average Overweight (x) . | . . . . 1 . . . . . . . . . . Largest Inventory Capacity 15 | 5 15 15 15 15 15 15 15 15 5 5 5 5 5 5 Average Capacity 10 | 5 11 15 15 15 15 15 14 12 5 5 5 5 5 5 Most Carried 15 | 5 12 13 15 14 15 15 11 9 5 5 5 4 5 5 Average Carried 7 | 4 8 11 11 14 13 12 8 6 4 4 4 2 4 4 Final Capacity 15 | 5 15 15 15 15 15 15 15 5 5 5 5 5 5 5 Final Carried 15 | 5 12 11 14 14 15 12 9 5 3 5 3 2 5 5 Class Distribution -------------------- 47% | Mutant 26% | Scavenger-Mutant 25% | Hacker-Mutant Dominant Class ---------------- Mutant | -10/Materials Mutant | -10/Mines Mutant | -9/Materials Mutant | -9/Mines Mutant | -8/Materials Hacker-Mutant | -7/Factory Hacker-Mutant | -7/Lower Caves Hacker-Mutant | -7/Lower Caves Hacker-Mutant | -6/Factory Hacker-Mutant | -5/Factory Mutant | -5/Upper Caves Mutant | -5/Upper Caves Scavenger-Mutant | -5/Warlord Scavenger-Mutant | -4/Proximity Caves Resources | -11 -10 -10 -9 -9 -8 -7 -7 -7 -6 -5 -5 -5 -5 -4 ----------- Run | Jun Mat Min Mat Min Mat Fac Low Low Fac Fac Upp Upp War Pro Matter Collected 2990 | 219 42 406 352 . 232 20 1139 70 . 100 60 120 120 110 Remotely . | . . . . . . . . . . . . . . . Salvage Created 3119 | 14 68 101 224 . 327 35 770 199 . . 63 738 45 535 Parts 147 | 5 13 24 13 . 18 2 32 3 . . 1 19 1 16 Haulers Intercepted 1 | . . . . . 1 . . . . . . . . . Recyclers Shooed . | . . . . . . . . . . . . . . . Parts Field Recycled . | . . . . . . . . . . . . . . . Retrieved Matter . | . . . . . . . . . . . . . . . Parts Self-Destructed 42 | . . . . . . . 13 5 . . 3 9 . 12 Prevented 3 | . . . . . . . . 3 . . . . . . Kills | -11 -10 -10 -9 -9 -8 -7 -7 -7 -6 -5 -5 -5 -5 -4 ------- Run | Jun Mat Min Mat Min Mat Fac Low Low Fac Fac Upp Upp War Pro Combat Hostiles Destroyed 64 | . 6 14 4 . 6 4 14 6 . . . 4 . 6 Melee 14 | . . . . . . 1 1 2 . . . 4 . 6 Guns 20 | . 1 3 4 . 4 . 6 2 . . . . . . Cannons 4 | . . . . . . . 3 1 . . . . . . AOE 23 | . 5 11 . . 2 2 3 . . . . . . . Classes Destroyed 14 | 1 2 1 1 . 3 2 1 . . . . 2 . 1 Tunneler 2 | 1 . 1 . . . . . . . . . . . . Hauler 1 | . . . . . 1 . . . . . . . . . Drone 1 | . . . . . . . . . . . . . . 1 Watcher 2 | . 1 . 1 . . . . . . . . . . . Swarmer 25 | . 6 12 . . . . . 3 . . . . . 4 Grunt 18 | . . 2 2 . 2 2 4 3 . . 1 2 . . Brawler 1 | . . . . . . 1 . . . . . . . . Duelist 2 | . . . . . 1 . . . . . . 1 . . Sentry 5 | . . . 2 . 2 . . . . . . . . 1 Hunter 4 | . . . . . 1 . 2 . . . . . 1 . Programmer 4 | . . . . . . 1 2 . . . . 1 . . Decomposer 1 | . . . . . . . . . . . . 1 . . Samaritan 3 | . . . . . . . . . . . . 3 . . Thug 5 | . . . . . . . 5 . . . . . . . Savage 3 | . . . . . . . 3 . . . . . . . Mutant 2 | . . . . . . . 2 . . . . . . . Best Kill Streak 4 | 1 3 4 2 . 2 2 3 4 . . . 2 . 4 Combat Bots Only 4 | . 3 4 2 . 2 2 3 4 . . . 2 . 4 Max Kills in Single Turn 3 | 1 3 3 2 . 2 1 2 1 . . 1 1 1 1 Gunslinging . | . . . . . . . . . . . . . . . Exploded 3 | . 3 3 . . 2 1 2 . . . . . . . Melee 1 | . . . . . . 1 1 1 . . . 1 . 1 Uniques/NPCs Destroyed . | . . . . . . . . . . . . . . . Combat | -11 -10 -10 -9 -9 -8 -7 -7 -7 -6 -5 -5 -5 -5 -4 -------- Run | Jun Mat Min Mat Min Mat Fac Low Low Fac Fac Upp Upp War Pro Damage Taken 8278 | . 114 452 683 349 878 487 1811 1451 72 393 530 430 . 628 Core 2191 | . 18 91 109 81 190 49 222 377 38 214 440 280 . 82 Absorbed by Shields . | . . . . . . . . . . . . . . . Redirected to Shielding 88 | . . . . . . . . . 23 65 . . . . Regen/Repaired (Parts) 97 | . . . . . . . . . . . . . 97 . Core Remaining (%) 62 | 100 . 56 . 52 65 . . 7 95 . . . . . Volleys Fired 238 | 1 12 39 29 3 36 9 90 19 . . . . . . Largest 2 | 2 1 2 2 2 1 1 2 1 . . . . . . Hottest 77 | 40 30 40 43 43 36 36 77 75 . . . . . . Shots Fired 286 | 2 12 43 51 6 36 10 109 17 . . . . . . Gun 216 | 2 8 33 51 6 34 . 72 10 . . . . . . Cannon 37 | . . . . . . . 30 7 . . . . . . Launcher 33 | . 4 10 . . 2 10 7 . . . . . . . Special . | . . . . . . . . . . . . . . . Kinetic 247 | 2 8 33 51 6 34 . 102 11 . . . . . . Thermal 6 | . . . . . . . . 6 . . . . . . Explosive 33 | . 4 10 . . 2 10 7 . . . . . . . Electromagnetic . | . . . . . . . . . . . . . . . Robot Hit Streak 14 | 1 2 5 6 3 6 4 14 8 . . . . . . Robot Miss Streak 4 | . 4 3 3 1 2 1 3 1 . . . . . . Penetration Max . | . . . . . . . . . . . . . . . Secondary Targets . | . . . . . . . . . . . . . . . Shots Hit Robots 281 | 1 3 22 36 5 27 11 87 20 . . 20 27 1 21 Core Hits 150 | 1 8 22 10 2 15 10 40 7 . . 10 16 . 9 Critical Kills 2 | . . . . . . . 2 . . . . . . . Critical Parts Destroyed 4 | . . . . . . 1 1 2 . . . . . . Critical Strikes 14 | . . . . . . 1 3 2 . . . 3 . 5 Destroy 2 | . . . . . . . 2 . . . . . . . Smash 4 | . . . . . . 1 1 2 . . . . . . Impale 3 | . . . . . . . . . . . . 3 . . Sunder 5 | . . . . . . . . . . . . . . 5 Melee Attacks 108 | . . . . . . 5 6 8 . . 21 35 2 31 Impact 19 | . . . . . . 5 6 8 . . . . . . Slashing . | . . . . . . . . . . . . . . . Piercing 58 | . . . . . . . . . . . 21 35 1 1 Entropic 31 | . . . . . . . . . . . . . 1 30 Sneak Attacks 11 | . . . . . . . . . . . 6 4 1 . Combat Hostiles 3 | . . . . . . . . . . . 3 . . . Follow-up Attacks . | . . . . . . . . . . . . . . . Damage Inflicted 10620 | 24 364 951 514 56 488 787 2413 604 . . 108 1445 152 2714 Guns 2397 | 24 24 234 514 56 366 . 1046 133 . . . . . . Cannons 784 | . . . . . . . 627 157 . . . . . . Explosions 2435 | . 340 710 . . 122 631 632 . . . . . . . Melee 4997 | . . . . . . 156 108 314 . . 108 1445 152 2714 Ramming 7 | . . 7 . . . . . . . . . . . . Kinetic 3095 | 24 24 234 514 56 366 . 1673 204 . . . . . . Thermal 208 | . . 122 . . . . . 86 . . . . . . Explosive 2313 | . 340 588 . . 122 631 632 . . . . . . . Electromagnetic . | . . . . . . . . . . . . . . . Impact 578 | . . . . . . 156 108 314 . . . . . . Slashing . | . . . . . . . . . . . . . . . Piercing 1553 | . . . . . . . . . . . 108 1445 . . Entropic 2866 | . . . . . . . . . . . . . 152 2714 Highest Corruption 18 | . . . . . . 4 18 18 . . . . . . Average Corruption 12 | . . . . . . 2 13 18 . . . . . . Corruption Purged . | . . . . . . . . . . . . . . . Corruption Blocked . | . . . . . . . . . . . . . . . Effects 87 | . . . . . . 2 79 6 . . . . . . Message Errors 19 | . . . . . . . 17 2 . . . . . . Matter Fused 24 | . . . . . . 1 22 1 . . . . . . Heat Flow Errors 10 | . . . . . . . 9 1 . . . . . . Energy Discharges 11 | . . . . . . . 11 . . . . . . . Parts Rejected 1 | . . . . . . . 1 . . . . . . . Data Loss (minor) 6 | . . . . . . . 6 . . . . . . . Data Loss (major) 4 | . . . . . . . 4 . . . . . . . Misfires 2 | . . . . . . 1 1 . . . . . . . Weapon Failures 10 | . . . . . . . 8 2 . . . . . . Overload Shots . | . . . . . . . . . . . . . . . Overflow Damage 2096 | . 12 12 . . . 95 75 137 . . 18 439 123 1185 Projectiles 3 | . . . . . . . 3 . . . . . . . Explosions 56 | . 12 12 . . . 28 4 . . . . . . . Melee 2037 | . . . . . . 67 68 137 . . 18 439 123 1185 Knockbacks 5 | . . . . . . 1 1 3 . . . . . . Impact 2 | . . . . . . 1 . 1 . . . . . . Kinetic 3 | . . . . . . . 1 2 . . . . . . Secondary . | . . . . . . . . . . . . . . . Self-Inflicted Damage 189 | . 63 79 . . . 47 . . . . . . . . Shots 10 | . 2 4 . . . 4 . . . . . . . . Rammed 1 | . . 1 . . . . . . . . . . . . Targets Rammed 1 | . . 1 . . . . . . . . . . . . Kicked . | . . . . . . . . . . . . . . . Crushed . | . . . . . . . . . . . . . . . Highest Temperature 251 | . . 16 3 11 16 14 251 125 . . 6 . . . Average Temperature 80 | . . 9 3 7 6 4 110 43 . . 6 . . . Received Heat Transfer 2254 | . . 165 210 156 387 126 468 270 27 63 193 135 . 54 Effects 1 | . . . . . . . 1 . . . . . . . Energy Bleed 1 | . . . . . . . 1 . . . . . . . Siege Activations . | . . . . . . . . . . . . . . . Robots Corrupted . | . . . . . . . . . . . . . . . Combat Hostiles . | . . . . . . . . . . . . . . . Parts Fried 2 | . . . . . . 1 . 1 . . . . . . Impact Corruptions 12 | . . . . . . 4 2 6 . . . . . . Robots Melted . | . . . . . . . . . . . . . . . Combat Hostiles . | . . . . . . . . . . . . . . . Parts Melted 4 | . . . . . . . 4 . . . . . . . Heat Transferred 348 | . . 200 . . . . . 148 . . . . . . Parts Sabotaged . | . . . . . . . . . . . . . . . Parts Stolen . | . . . . . . . . . . . . . . . Parts Stripped . | . . . . . . . . . . . . . . . Power Chain Reactions . | . . . . . . . . . . . . . . . Missiles Intercepted . | . . . . . . . . . . . . . . . Alert | -11 -10 -10 -9 -9 -8 -7 -7 -7 -6 -5 -5 -5 -5 -4 ------- Run | Jun Mat Min Mat Min Mat Fac Low Low Fac Fac Upp Upp War Pro Peak Influence 470 | 5 203 470 109 30 149 145 . . 59 147 . . . . Initial 78 | . 3 78 4 25 7 49 . . 44 28 . . . . Average 117 | . 154 211 44 16 84 62 . . 45 57 . . . . Maximum Alert Level 2 | . 1 2 . . . . . . . . . . . . Low Security (%) 79 | 100 54 48 100 100 100 100 . . 100 100 . . . . Level 1 18 | . 45 44 . . . . . . . . . . . . Level 2 2 | . . 6 . . . . . . . . . . . . Level 3 . | . . . . . . . . . . . . . . . Level 4 . | . . . . . . . . . . . . . . . Level 5 . | . . . . . . . . . . . . . . . High Security . | . . . . . . . . . . . . . . . Max Security . | . . . . . . . . . . . . . . . Squads Dispatched 7 | . . . . . 3 1 . . 1 2 . . . . Investigation 2 | . . . . . 1 . . . . 1 . . . . Extermination . | . . . . . . . . . . . . . . . Reinforcement 5 | . . . . . 2 1 . . 1 1 . . . . Assault . | . . . . . . . . . . . . . . . Garrison . | . . . . . . . . . . . . . . . Intercept . | . . . . . . . . . . . . . . . Searches Triggered . | . . . . . . . . . . . . . . . Construction Impeded . | . . . . . . . . . . . . . . . Haulers Reinforced . | . . . . . . . . . . . . . . . Active Scanning Responses . | . . . . . . . . . . . . . . . Cargo Convoy Interrupts . | . . . . . . . . . . . . . . . Stealth | -11 -10 -10 -9 -9 -8 -7 -7 -7 -6 -5 -5 -5 -5 -4 --------- Run | Jun Mat Min Mat Min Mat Fac Low Low Fac Fac Upp Upp War Pro Distress Signals 5 | . 1 . 2 . 1 . . . . . . . 1 . Communications Jammed 10 | . . . . . . . . . . 7 . . . 3 Distress Signals 7 | . . . . . . . . . . 7 . . . . Times Spotted 151 | . 5 13 13 24 15 7 14 11 3 10 14 4 6 12 Peak Tracking Total 20 | . 3 4 4 20 7 5 4 7 2 6 4 3 5 4 Tactical Retreats 8 | . . 1 . 1 1 . . . 1 1 3 . . . Traps | -11 -10 -10 -9 -9 -8 -7 -7 -7 -6 -5 -5 -5 -5 -4 ------- Run | Jun Mat Min Mat Min Mat Fac Low Low Fac Fac Upp Upp War Pro Traps Triggered 6 | . 1 . 1 . 2 1 . . . 1 . . . . Indirectly . | . . . . . . . . . . . . . . . Trap Hack Attempts . | . . . . . . . . . . . . . . . Triggered . | . . . . . . . . . . . . . . . Disarmed . | . . . . . . . . . . . . . . . Reprogrammed . | . . . . . . . . . . . . . . . Reused . | . . . . . . . . . . . . . . . Traps Extracted . | . . . . . . . . . . . . . . . Installed . | . . . . . . . . . . . . . . . Triggered 17 | . . . . . . . . 2 . . . . 15 . Machines | -11 -10 -10 -9 -9 -8 -7 -7 -7 -6 -5 -5 -5 -5 -4 ---------- Run | Jun Mat Min Mat Min Mat Fac Low Low Fac Fac Upp Upp War Pro Machines Disabled 3 | . 1 1 . . . . . . . . . 1 . . Max in Single Turn 1 | . 1 1 . . . . . . . . . 1 . . Machines Repaired . | . . . . . . . . . . . . . . . Machines Sabotaged . | . . . . . . . . . . . . . . . Overloaded Fab Kills . | . . . . . . . . . . . . . . . Hacking | -11 -10 -10 -9 -9 -8 -7 -7 -7 -6 -5 -5 -5 -5 -4 --------- Run | Jun Mat Min Mat Min Mat Fac Low Low Fac Fac Upp Upp War Pro Machines Accessed 31 | . 5 1 6 . 5 2 . . 2 2 1 . 7 . Terminals 19 | . 5 . 6 . 5 1 . . . 2 . . . . Fabricators 1 | . . . . . . 1 . . . . . . . . Repair Stations . | . . . . . . . . . . . . . . . Recycling Units 2 | . . . . . . . . . 2 . . . . . Scanalyzers . | . . . . . . . . . . . . . . . Garrison Access . | . . . . . . . . . . . . . . . Total Hacks 105 | . 14 1 18 . 29 2 . . 6 14 1 . 20 . Successful 62 | . 4 1 9 . 15 . . . 3 9 1 . 20 . Failed 43 | . 10 . 9 . 14 2 . . 3 5 . . . . Catastrophic 6 | . 3 . . . 3 . . . . . . . . . Database Lockouts . | . . . . . . . . . . . . . . . Manual 58 | . 11 . 13 . 24 2 . . . 8 . . . . Terminals 76 | . 14 . 18 . 29 1 . . . 14 . . . . Fabricators 1 | . . . . . . 1 . . . . . . . . Repair Stations . | . . . . . . . . . . . . . . . Recycling Units 6 | . . . . . . . . . 6 . . . . . Scanalyzers . | . . . . . . . . . . . . . . . Garrison Access . | . . . . . . . . . . . . . . . Terminal Hacks 41 | . 2 1 3 . 8 . . . . 6 1 . 20 . Record 8 | . . . . . . . . . . 1 . . 7 . Prototype ID Bank 11 | . . . . . . . . . . . . . 11 . Open Door 4 | . . 1 . . . . . . . . 1 . 2 . Branch Access Points 1 | . . . . . 1 . . . . . . . . . Emergency Access Points 2 | . . . . . 1 . . . . 1 . . . . Terminal Index 1 | . . . . . 1 . . . . . . . . . Alert Level 4 | . 1 . 1 . 1 . . . . 1 . . . . Unreport Threat 1 | . . . . . 1 . . . . . . . . . Locate Traps 3 | . . . 2 . . . . . . 1 . . . . Recall Investigation 1 | . . . . . 1 . . . . . . . . . Zone Layout 5 | . 1 . . . 2 . . . . 2 . . . . Fabricator Hacks . | . . . . . . . . . . . . . . . Repair Station Hacks . | . . . . . . . . . . . . . . . Recycling Unit Hacks 3 | . . . . . . . . . 3 . . . . . Report Inventory 2 | . . . . . . . . . 2 . . . . . Retrieve Components 1 | . . . . . . . . . 1 . . . . . Scanalyzer . | . . . . . . . . . . . . . . . Garrison Access Hacks . | . . . . . . . . . . . . . . . Unauthorized Hacks 18 | . 2 . 6 . 7 . . . . 3 . . . . Terminals 18 | . 2 . 6 . 7 . . . . 3 . . . . Track 1 | . . . . . 1 . . . . . . . . . Assimilate 2 | . . . 2 . . . . . . . . . . . Botnet 12 | . 2 . 3 . 5 . . . . 2 . . . . Operators 3 | . . . 1 . 1 . . . . 1 . . . . Fabricators . | . . . . . . . . . . . . . . . Repair Stations . | . . . . . . . . . . . . . . . Recycling Units . | . . . . . . . . . . . . . . . Scanalyzers . | . . . . . . . . . . . . . . . Garrison Access . | . . . . . . . . . . . . . . . Data Cores Recovered . | . . . . . . . . . . . . . . . Used . | . . . . . . . . . . . . . . . Hacking Detections 22 | . 5 . 6 . 5 2 . . 2 2 . . . . Full Trace Events . | . . . . . . . . . . . . . . . Feedback Events . | . . . . . . . . . . . . . . . Feedback Blocked . | . . . . . . . . . . . . . . . Robot Schematics Acquired . | . . . . . . . . . . . . . . . Robots Built . | . . . . . . . . . . . . . . . Authchips . | . . . . . . . . . . . . . . . Time . | . . . . . . . . . . . . . . . Total Robot Build Rating . | . . . . . . . . . . . . . . . Part Schematics Acquired . | . . . . . . . . . . . . . . . Parts Built . | . . . . . . . . . . . . . . . Authchips . | . . . . . . . . . . . . . . . Time . | . . . . . . . . . . . . . . . Total Part Build Rating . | . . . . . . . . . . . . . . . Parts Repaired . | . . . . . . . . . . . . . . . Time . | . . . . . . . . . . . . . . . Parts Recycled . | . . . . . . . . . . . . . . . Recycled Matter . | . . . . . . . . . . . . . . . Retrieved Matter . | . . . . . . . . . . . . . . . Retrieved Components 3 | . . . . . . . . . 3 . . . . . Parts Scanalyzed . | . . . . . . . . . . . . . . . Part Schematics Acquired . | . . . . . . . . . . . . . . . Parts Damaged . | . . . . . . . . . . . . . . . Bothacking | -11 -10 -10 -9 -9 -8 -7 -7 -7 -6 -5 -5 -5 -5 -4 ------------ Run | Jun Mat Min Mat Min Mat Fac Low Low Fac Fac Upp Upp War Pro Used RIF Installer . | . . . . . . . . . . . . . . . Robots Hacked . | . . . . . . . . . . . . . . . Non-combat . | . . . . . . . . . . . . . . . Combat . | . . . . . . . . . . . . . . . Robot Hacks Applied . | . . . . . . . . . . . . . . . Relay Couplers Released . | . . . . . . . . . . . . . . . Fabnet Peak Effective % . | . . . . . . . . . . . . . . . Robots Rewired 5 | . . . . . . . 1 . . . . . 4 . Allies Hacked . | . . . . . . . . . . . . . . . Hacks Repelled . | . . . . . . . . . . . . . . . Allies | -11 -10 -10 -9 -9 -8 -7 -7 -7 -6 -5 -5 -5 -5 -4 -------- Run | Jun Mat Min Mat Min Mat Fac Low Low Fac Fac Upp Upp War Pro Total Allies 14 | . . 3 1 . . . 1 . . . 4 1 4 . Largest Group 4 | . . 3 3 1 . . 1 . . . 2 1 4 . Highest-Rated Group 212 | . . 40 40 10 . . 20 . . . 58 127 212 . Highest-Rated Ally 127 | . . 16 16 10 . . 20 . . . 47 127 65 . Total Orders 14 | . . . 4 . . . 5 . . . 1 3 1 . ROAM 3 | . . . 3 . . . . . . . . . . . EXPLORE 11 | . . . 1 . . . 5 . . . 1 3 1 . Ally Attacks 42 | . . . 15 . . . . . . . 21 . 6 . Total Damage 655 | . . . 207 . . . . . . . 228 . 220 . Kills 4 | . . . 2 . . . . . . . . . 2 . Allies Corrupted 1 | . . . . 1 . . . . . . . . . . Allies Melted . | . . . . . . . . . . . . . . . Intel | -11 -10 -10 -9 -9 -8 -7 -7 -7 -6 -5 -5 -5 -5 -4 ------- Run | Jun Mat Min Mat Min Mat Fac Low Low Fac Fac Upp Upp War Pro Robot Analysis Total . | . . . . . . . . . . . . . . . Derelict Logs Recovered 4 | . . 1 . . . . 2 . . . . . . 1 Drone Launches 71 | . . . 1 . . . 10 . . . 6 36 18 . Drone Recoveries 51 | . . . 1 . . . 9 . . . 4 29 8 . Exploration | -11 -10 -10 -9 -9 -8 -7 -7 -7 -6 -5 -5 -5 -5 -4 ------------- Run | Jun Mat Min Mat Min Mat Fac Low Low Fac Fac Upp Upp War Pro Turns Passed 9012 | 52 299 1295 742 41 613 481 1638 131 141 205 581 815 1120 858 Spaces Moved 6207 | 44 256 830 346 31 320 332 983 81 210 312 468 551 737 706 Core 1036 | 13 . . . . . . . 80 73 33 468 369 . . Treads 1276 | . . 538 131 . 26 181 399 1 . . . . . . Legs 1518 | . . . 44 . . . . . . . . 182 737 555 Wheels 1713 | 31 256 292 171 31 294 151 487 . . . . . . . Hover 567 | . . . . . . . . . 137 279 . . . 151 Flight 97 | . . . . . . . 97 . . . . . . . Fastest Speed 35 | 50 100 100 105 105 105 105 35 50 50 50 50 50 120 58 Average Speed 109 | 85 100 143 129 105 109 132 126 82 53 58 78 74 122 108 Slowest Speed 450 | 100 100 240 270 105 225 225 250 450 61 66 250 300 190 192 Overloaded Moves . | . . . . . . . . . . . . . . . Propulsion Burnouts . | . . . . . . . . . . . . . . . Robots Hopped . | . . . . . . . . . . . . . . . Cave-ins Triggered . | . . . . . . . . . . . . . . . Exploration Rate (%) 49 | 3 45 99 37 23 37 8 95 10 7 15 88 96 92 81 Regions Visited 14 Branch Regions 8 Pre-discovered Areas . | . . . . . . . . . . . . . . . Known Exits Taken 10 | . . 1 . 1 1 1 1 1 1 . 1 1 1 . Unknown Exits Taken 4 | 1 1 . 1 . . . . . . 1 . . . . Scrap Searched 10 | . . 1 . . . . 3 1 . . . . . 5 Spaces Dug 12 | . 5 . . . 7 . . . . . . . . . Terrain Destroyed 210 | . 24 74 . . 12 52 48 . . . . . . . Melee . | . . . . . . . . . . . . . . . Projectile 1 | . . . . . . . 1 . . . . . . . AOE 209 | . 24 74 . . 12 52 47 . . . . . . . Terrain Rammed . | . . . . . . . . . . . . . . . Walls Destroyed . | . . . . . . . . . . . . . . . Machines Disabled . | . . . . . . . . . . . . . . . Actions | -11 -10 -10 -9 -9 -8 -7 -7 -7 -6 -5 -5 -5 -5 -4 --------- Run | Jun Mat Min Mat Min Mat Fac Low Low Fac Fac Upp Upp War Pro Total 8001 | 54 287 891 588 33 546 354 1251 112 237 335 690 901 955 767 Wait 1147 | . . 14 188 . 163 4 115 . 14 9 196 300 140 4 Move 6193 | 43 255 829 345 30 319 331 982 80 209 311 467 550 736 706 Hop . | . . . . . . . . . . . . . . . Pick Up 52 | 5 9 2 6 . 7 1 7 . 2 6 . 2 4 1 Fast Attach 78 | 5 1 1 8 . 9 . 18 . 6 1 2 5 11 11 Attach 48 | . 3 4 4 . 6 4 9 4 2 2 3 6 . 1 Detach 18 | . 1 1 1 . 3 . 5 . . . 1 3 . 3 Swap 9 | . 3 . . . . . 2 . . 2 . . 1 1 Drop 52 | . 3 . 7 . 3 . 10 1 4 4 . . 10 10 Fire 238 | 1 12 39 29 3 36 9 90 19 . . . . . . Melee 106 | . . . . . . 5 6 8 . . 21 35 1 30 Ram . | . . . . . . . . . . . . . . . Kick . | . . . . . . . . . . . . . . . Crush 1 | . . 1 . . . . . . . . . . . . Escape Stasis . | . . . . . . . . . . . . . . . Rewire 59 | . . . . . . . 7 . . . . . 52 . Trap . | . . . . . . . . . . . . . . . Miscellaneous . | . . . . . . . . . . . . . . . Route ------- -11/Junkyard -10/Materials (discovered 2 exits: *Mat / *Min) -10/Mines (discovered 2 exits: *Mat x2) -9/Materials (discovered 2 exits: *Mat / [*Min]) -9/Mines -8/Materials -7/Factory -7/Lower Caves -7/Lower Caves -6/Factory -5/Factory -5/Upper Caves -5/Upper Caves (discovered 3 exits: *Fac x2 / *War) -5/Warlord -4/Proximity Caves History --------- Turn | Location | Event 10 | -11/Junkyard | Discovered new exit (range 15) 53 | -11/Junkyard | Entered Materials 242 | -10/Materials | Discovered new exit (range 6) 248 | -10/Materials | Identified exit to Materials 318 | -10/Materials | Build established: Mutant 336 | -10/Materials | Discovered new exit (range 15) 352 | -10/Materials | Entered Mines 382 | -10/Mines | Discovered exit to Materials (range 9) 500 | -10/Mines | Discovered exit to Materials (range 5) 570 | -10/Mines | Learned Materials interactive machine intel 751 | -10/Mines | Lost 3 parts (1p1n1w) 1023 | -10/Mines | Found the Drone Emporium 1032 | -10/Mines | Found Prototype Device 1032 | -10/Mines | Identified Sensor Drone Bay 1378 | -10/Mines | Assisted by bots powering up and referring to "LRC-V3" 1647 | -10/Mines | Entered Materials 1647 | -9/Materials | Accompanied by 3 allies 1647 | -9/Materials | Evolved 2 slots: Propulsion x2 1648 | -9/Materials | Loaded intel: 17 interactive machine locations 2132 | -9/Materials | Discovered new exit (range 4) 2136 | -9/Materials | Identified exit to Materials 2349 | -9/Materials | Discovered new exit (range 13) 2389 | -9/Materials | Entered Mines 2389 | -9/Mines | Accompanied by 1 ally 2390 | -9/Mines | Assembled infested the area 2390 | -9/Mines | Met a Derelict bent on vengeance 2416 | -9/Mines | Discovered exit to Materials (range 14) 2430 | -9/Mines | Entered Materials 2430 | -8/Materials | Evolved 2 slots: Utility x2 2506 | -8/Materials | Lost 4 parts (1p2n1w) 3026 | -8/Materials | Discovered new exit (range 12) 3041 | -8/Materials | Identified exit to Factory 3043 | -8/Materials | Entered Factory 3043 | -7/Factory | Evolved 2 slots: Utility x2 3363 | -7/Factory | Lost 5 parts (2p1n1u1w) 3459 | -7/Factory | Build established: Hacker-Mutant 3501 | -7/Factory | Discovered new exit (range 16) 3519 | -7/Factory | Identified exit to Lower Caves 3524 | -7/Factory | Entered Lower Caves 3587 | -7/Lower Caves | System corruption reached 10% 3832 | -7/Lower Caves | Identified exit to Lower Caves 4203 | -7/Lower Caves | Learned Factory garrison access intel 4238 | -7/Lower Caves | Ambushed by research squad 4275 | -7/Lower Caves | Lost 4 parts (1p2n1w) 4277 | -7/Lower Caves | Encountered a Warlord checkpoint 4883 | -7/Lower Caves | Attacked by a faux Warlord 4964 | -7/Lower Caves | Lost 7 parts (1p2n2u2w) 5162 | -7/Lower Caves | Entered another Lower Caves area 5171 | -7/Lower Caves | Core integrity fell below 50% 5211 | -7/Lower Caves | Core integrity fell below 20% 5250 | -7/Lower Caves | Lost 9 parts (1p4n1u3w) 5288 | -7/Lower Caves | Discovered new exit (range 8) 5291 | -7/Lower Caves | Identified exit to Factory 5293 | -7/Lower Caves | Entered Factory 5293 | -6/Factory | Evolved 2 slots: Utility x2 5294 | -6/Factory | Loaded intel: 4 garrison access locations 5384 | -6/Factory | Discovered new exit (range 11) 5407 | -6/Factory | Identified exit to Factory 5434 | -6/Factory | Entered another Factory area 5434 | -5/Factory | Evolved 2 slots: Power x1, Propulsion x1 5619 | -5/Factory | Released all parts (12) 5624 | -5/Factory | Discovered new exit (range 16) 5639 | -5/Factory | Entered Upper Caves 5926 | -5/Upper Caves | Build established: Mutant 5957 | -5/Upper Caves | Attracted the attention of an 0b10 checkpoint 6076 | -5/Upper Caves | Core integrity fell below 50% 6190 | -5/Upper Caves | Discovered new exit (range 15) 6220 | -5/Upper Caves | Identified exit to Upper Caves 6220 | -5/Upper Caves | Entered another Upper Caves area 6270 | -5/Upper Caves | Discovered new exit (range 43) 6271 | -5/Upper Caves | Identified exit to Factory 6577 | -5/Upper Caves | Discovered new exit (range 59) 6695 | -5/Upper Caves | Core integrity fell below 20% 6936 | -5/Upper Caves | CL-ANK showed up to help 6938 | -5/Upper Caves | CL-ANK revealed a hidden path 7021 | -5/Upper Caves | Identified exit to Warlord 7035 | -5/Upper Caves | Entered Warlord 7037 | -5/Warlord | Build established: Scavenger-Mutant 7243 | -5/Warlord | Met Warlord 7268 | -5/Warlord | Warlord's base attacked by MAIN.C 7373 | -5/Warlord | Found Prototype Piercing Weapon 7373 | -5/Warlord | Identified Vortex Lance 7376 | -5/Warlord | Found Vortex Lance 7618 | -5/Warlord | Warlord forces counterattacked 7927 | -5/Warlord | Spotted Striker 7943 | -5/Warlord | Warlord base infiltrated, sounded retreat 8012 | -5/Warlord | Spotted Striker 8083 | -5/Warlord | Spotted Striker 8091 | -5/Warlord | Found Prototype Device 8091 | -5/Warlord | Identified Exp. Thermal Shield 8142 | -5/Warlord | Discovered new exit (range 9) 8154 | -5/Warlord | Identified exit to Proximity Caves 8155 | -5/Warlord | Entered Proximity Caves 8264 | -4/Proximity Caves | Attracted the attention of an 0b10 checkpoint 8407 | -4/Proximity Caves | Spotter reported a threat 8605 | -4/Proximity Caves | Spotter reported a threat 8715 | -4/Proximity Caves | Spotter reported a threat 8773 | -4/Proximity Caves | Spotter reported a threat 8944 | -4/Proximity Caves | Spotter reported a threat 8957 | -4/Proximity Caves | Spotted B-86 Titan 9013 | -4/Proximity Caves | Destroyed by B-86 Titan with Railgun Last Messages --------------- 08945_ Acquired derelict log, extracted data. Data stored: Quarantine entrances (x1). 08998_ Searching scrap... 08998_ Found Mak. System Shield. 08998_ Found Imp. Targeting Computer. 08998_ Found Imp. Medium Treads. 08998_ Found Imp. Coolant Injector. 08998_ Found 34 Matter. 08999_ Acquired Mak. System Shield. 09000_ Acquired 10 matter. 09001_ Acquired Imp. Coolant Injector. 09004_ Dropped Enh. Flexi-carbon Leg. 09004_ Acquired Imp. Medium Treads. 09007_ Airjet destroyed. 09007_ Penetrated by Slug. 09007_ Slug penetrates Wall. 09010_ Airjet destroyed. 09010_ Adv. Transmission Jammer destroyed. 09010_ Critical hit (Blast). 09010_ Lgt. Antimatter Reactor destroyed. Map ----- +----------------------------------------------------+ | ?????????????????????????????????????????????????? | | ?????????????????????????????????????????????????? | | ?????????????????????????????????????????????????? | | ?????????????????????????????????????????????????? | | ?????????????????????????????????????????????????? | | ?????????????????????????????????????????????????? | | ?????????????????????????????????????????????????? | | ?????????????????????????????????????????????????? | | ?????????????????????????????????????????????????? | | ?????????????????????????????????????????????????? | | ???????????????????? ????????????????????????????? | | ??????????????????? #????????????????????????????? | | ??????????????????? #????????????????????????????? | | ??????????????????? ????????????????????????????? | | ???#####??????????? #????????????????????????????? | | ??## ##?????????# #????????????????????????????? | | ??# #????????## #????????????????????????????? | | ?## #???#????## ###??????????????????????????? | | ## #???? #### ##?????????????????????????? | | # ##??? #?????????????????????????? | | ###??? ####??????????????????????? | | #???## #####??????????????????? | | #???# #??????????????????? | | ##???# # BB #?????????????????? | | ###????## ## BB #??????????????????? | | ##???????# ## @## #??????????????????? | | ########## ## #??????????????????????? | | ### ;##??????????????????????? | | ## #???????????????????????? | | ########### #???????????????????????? | | ### ##?????#### % #######??????????????????? | | ### #??????# % #??????????????????? | | ##??????# %=! #??????????????????? | | #??????## ## ###### #??????????????????? | | ##???### #[ "# #??????????????????? | | ##### # " "# #??????????????????? | | #" " #??????????????????? | | # # #??????????????????? | | ##### ### # # #??????????????????? | | #######???###?# + " # #??????????????????? | | ??????????????# # T # #??????????????????? | | ??????????????# # ""# #??????????????????? | | ??????????????# " "" "# #??????????????????? | | ??????????????# ####+ # #??????????????????? | | ??????????????# #??????????????????? | | ??????????????# #??????????????????? | | ??????????????#################??????????????????? | | ?????????????????????????????????????????????????? | | ?????????????????????????????????????????????????? | | ?????????????????????????????????????????????????? | +----------------------------------------------------+ Best States ------------- Heat Dissipation 130 Coolant Potential 80 Energy Generation 45 Energy Capacity 420 Matter Stores 300 Matter Capacity 300 Sight Range 16 Robot Scan Range 15 Terrain Scan Density 10 ECM Strength 2 Jamming Range 16 Armor Coverage 600 Resistance: TH 30 Core Shielding 30 Propulsion Shielding 66 Evasion (%) 63 Target Analysis 6 Recoil Reduction 4 Offensive Hacking 10 Defensive Hacking 30 Item Schematics ----------------- None Robot Schematics ------------------ None Fabricated ------------ Nothing Alien Tech Used ----------------- None Achievements -------------- Knowing Is Half The Battle Challenges ------------ None Game ------ Seed DisruptionWeightHumpback Manual? 0 Play Time 01:45:26 Cumulative 24.7 hours Start 2024.02.12 @ 02:49:03 End 2024.02.12 @ 04:35:15 Sessions 1 Manual Loads 0 Difficulty Rogue Special Mode None Game No. 28 Rogue 28 Adventurer 0 Explorer 0 Win Type - Total 0 Types 0/0/0/0/0/0/0/0/0 Lore% 33 Gallery% 34 Achievement% 37 Wizard Run 0 Options --------- ASCII 0 Keyboard 0 Movement Mouse Keybinds 0 Fullscreen 1 Font 18/SmallcapsGlow Map View 76x50 Tactical HUD 1 Map Filters NONE Filters NONE Steam 0 RUN: fc7e7551-70ba-49da-a1be-e9da7d2e3a16